fUSD/lending_fUSD_20241029
["ID","MTS","AMOUNT","RATE_DAILY","PERIOD"]
[340970400,1730182250620,-150.0,0.00043608,2]
[340970401,1730182250630,-150.0,0.00043609,2]
[340970402,1730182250640,-291.23647677,0.0004362,2]
[340970403,1730182250649,-541.83158733,0.00043623,6]
[340970404,1730182250659,-541.83158733,0.00043626,6]
[340970405,1730182250668,-150.0,0.00043627,2]
[340970406,1730182250677,-150.0,0.00043635,2]
[340970407,1730182250686,-1037.16267687,0.00043636,6]
[340970408,1730182250695,-161.27589389,0.00043642,30]
[340970409,1730182250704,-150.29526786,0.00043644,15]
[340970410,1730182250714,-1500.0,0.00043645,7]
[340970411,1730182250724,-227.33155332,0.00043649,6]
[340970412,1730182250734,-150.0,0.00043651,2]
[340970413,1730182250744,-586.56880568,0.00043652,6]
[340970414,1730182250754,-1037.16267687,0.00043652,6]
[340970415,1730182250763,-1037.16267687,0.00043657,6]
[340970416,1730182250773,-150.0,0.00043658,2]
[340970417,1730182250783,-1109.46662799,0.00043663,14]
[340970418,1730182250793,-150.0,0.00043671,2]
[340970419,1730182250803,-150.0,0.00043672,7]
[340970420,1730182250812,-150.0,0.00043675,2]
[340970421,1730182250822,-541.83158733,0.0004368,6]
[340970422,1730182250834,-86469.69494457,0.0004368,2]
[340970423,1730182250847,-1872.75591899,0.0004368,2]
[340970424,1730182250896,-180.49,0.00019178,2]
[340970425,1730182250905,-1057.27475679,0.0004,120]
[340970426,1730182250916,-1427.16864,0.0004,120]
[340970427,1730182250937,-1984.91453677,0.0004,120]
[340970428,1730182250948,-1464.43206644,0.0004,120]
[340970429,1730182250958,-10478.23793356,0.0004368,2]
[340970430,1730182250970,-364.2,0.0004368,2]
[340970431,1730182250981,-275.43,0.0004368,2]
[340970433,1730182319563,162.29,0.00015342,2]
[340970435,1730182358857,2893.53867145,0.00043863,30]
[340970437,1730182514544,250.0,0.00043931,30]
[340970438,1730182562689,-500.0,0.000159,2]
[340970442,1730182630787,-2542.7124,0.000159,2]
[340970443,1730182630809,-200.0,0.00016,2]
[340970444,1730182630830,-295.75373024,0.00016203,2]
[340970445,1730182630852,-250.0,0.00017,2]
[340970446,1730182630874,-151.0,0.00017587,2]
[340970447,1730182630894,-334.790122,0.00018407,2]
[340970448,1730182630914,-1178.0,0.000185,2]
[340970449,1730182630935,-300.0,0.00018757,2]
[340970450,1730182630956,-1248.0,0.00018758,2]
[340970451,1730182630976,-451.0,0.00018758,2]
[340970452,1730182630997,-561.0,0.00018758,2]
[340970453,1730182631018,-556.0,0.00018758,2]
[340970454,1730182631041,-1792.909,0.00018758,2]
[340970455,1730182631062,-3367.0,0.00018758,2]
[340970456,1730182631084,-821.0,0.00018758,2]
[340970457,1730182631104,-811.0,0.00018758,2]
[340970458,1730182631125,-300.0,0.00019,2]
[340970459,1730182650873,-420.0,0.0002045,2]
[340970460,1730182650893,-350.0,0.00021,2]
[340970461,1730182650913,-1246.0,0.00021758,2]
[340970462,1730182650933,-449.0,0.00021758,2]
[340970463,1730182650953,-561.0,0.00021758,2]
[340970464,1730182650972,-1039.575,0.00021758,2]
[340970465,1730182650994,-807.0,0.00021758,2]
[340970466,1730182651015,-811.0,0.00021758,2]
[340970467,1730182651036,-587.0,0.00022296,2]
[340970468,1730182651066,-400.0,0.00023,2]
[340970469,1730182651087,-823.0,0.00024309,2]
[340970470,1730182651108,-450.0,0.00025,2]
[340970471,1730182654538,-1152.0,0.00026503,2]
[340970472,1730182654560,-500.0,0.00027,2]
[340970473,1730182654581,-1613.0,0.00028896,2]
[340970474,1730182654601,-550.0,0.00029,2]
[340970475,1730182949005,500.0,0.00043893,30]
[340970476,1730182959308,500.0,0.00043893,30]
[340970477,1730182963740,500.0,0.00043893,30]
[340970478,1730182976565,500.0,0.00043893,30]
[340970479,1730182976833,500.0,0.00043893,30]
[340970480,1730182977106,500.0,0.00043893,30]
[340970481,1730182977413,500.0,0.00043893,30]
[340970482,1730182977600,500.0,0.00043893,30]
[340970483,1730182977782,500.0,0.00043893,30]
[340970484,1730182977897,335.32,0.00043893,30]
[340970485,1730182977988,500.0,0.00043893,30]
[340970486,1730182978286,500.0,0.00043893,30]
[340970487,1730182978550,500.0,0.00043893,30]
[340970488,1730182978597,500.0,0.00043893,30]
[340970489,1730182978848,500.0,0.00043893,30]
[340970490,1730182979155,408.38827741,0.00043893,30]
[340970491,1730182980712,500.0,0.00043893,30]
[340970492,1730182981199,602.88379558,0.00043893,30]
[340970493,1730182984001,500.0,0.00043893,30]
[340970494,1730182984046,500.0,0.00043893,30]
[340970495,1730182986463,500.0,0.00043893,30]
[340970496,1730182986786,500.0,0.00043893,30]
[340970497,1730182990728,500.0,0.00043893,30]
[340970498,1730182993473,500.0,0.00043892,30]
[340970499,1730182997728,500.0,0.00043892,30]
[340970500,1730183000627,557.57663931,0.00043892,30]
[340970501,1730183001677,500.0,0.00043892,30]
[340970502,1730183002446,500.0,0.00043892,30]
[340970503,1730183003021,593.24144772,0.00043892,30]
[340970504,1730183004431,500.0,0.00043892,30]
[340970505,1730183007593,500.0,0.00043892,30]
[340970506,1730183010401,500.0,0.00043892,30]
[340970507,1730183010998,245.65,0.00043892,30]
[340970508,1730183012711,500.0,0.00043892,30]
[340970509,1730183012975,500.0,0.00043892,30]
[340970510,1730183021653,500.0,0.00043892,30]
[340970511,1730183042735,632.24297361,0.00043892,30]
[340970512,1730183043244,500.0,0.00043892,30]
[340970513,1730183043308,219.38695755,0.00043892,30]
[340970514,1730183045755,500.0,0.00043892,30]
[340970515,1730183053178,561.63,0.00043892,30]
[340970516,1730183055617,500.0,0.00043892,30]
[340970517,1730183055666,552.61,0.00043892,30]
[340970518,1730183058036,269.69039906,0.00043892,30]
[340970519,1730183063048,500.0,0.00043892,30]
[340970520,1730183064141,500.0,0.00043892,30]
[340970521,1730183064444,500.0,0.00043892,30]
[340970522,1730183064484,500.0,0.00043892,30]
[340970523,1730183064950,500.0,0.00043892,30]
[340970524,1730183065574,500.0,0.00043892,30]
[340970525,1730183065863,500.0,0.00043892,30]
[340970526,1730183066153,481.27,0.00043892,30]
[340970527,1730183069412,500.0,0.00043892,30]
[340970528,1730183069708,167.16,0.00043892,30]
[340970529,1730183071016,500.0,0.00043892,30]
[340970530,1730183073191,500.0,0.00043892,30]
[340970531,1730183075035,-156.29,0.00015342,2]
[340970532,1730183075672,341.83665033,0.00043892,30]
[340970533,1730183077726,500.0,0.00043892,30]
[340970534,1730183082746,500.0,0.00043892,30]
[340970535,1730183088250,500.0,0.00043892,30]
[340970536,1730183090863,500.0,0.00043892,30]
[340970537,1730183093152,339.7369308,0.00043892,30]
[340970538,1730183094329,500.0,0.00043892,30]
[340970539,1730183096463,500.0,0.00043892,30]
[340970540,1730183097624,500.0,0.00043892,30]
[340970541,1730183097803,500.0,0.00043892,30]
[340970542,1730183097911,612.76,0.00043892,30]
[340970543,1730183098729,500.0,0.00043892,30]
[340970544,1730183100468,500.0,0.00043892,30]
[340970545,1730183101546,500.0,0.00043892,30]
[340970546,1730183102975,500.0,0.00043892,30]
[340970547,1730183113508,500.0,0.00043892,30]
[340970548,1730183116136,562.22,0.00043892,30]
[340970549,1730183117335,500.0,0.00043892,30]
[340970550,1730183118322,500.0,0.00043892,30]
[340970551,1730183126832,500.0,0.00043892,30]
[340970552,1730183135583,500.0,0.00043892,30]
[340970553,1730183138725,500.0,0.00043892,30]
[340970554,1730183141734,500.0,0.00043892,30]
[340970555,1730183144291,500.0,0.00043892,30]
[340970556,1730183144591,515.25789215,0.00043892,30]
[340970557,1730183147673,500.0,0.00043892,30]
[340970558,1730183154265,500.0,0.00043892,30]
[340970559,1730183161222,503.77942637,0.00043892,30]
[340970560,1730183167616,601.74487001,0.0001,2]
[340970561,1730183172719,500.0,0.00043892,30]
[340970562,1730183173002,500.0,0.00043892,30]
[340970563,1730183173294,267.47,0.00043892,30]
[340970564,1730183175165,500.0,0.00043892,30]
[340970565,1730183178028,500.0,0.00043892,30]
[340970566,1730183178753,500.0,0.00043892,30]
[340970567,1730183181397,500.0,0.00043892,30]
[340970568,1730183183763,279.16574565,0.00043892,30]
[340970569,1730183186315,500.0,0.00043892,30]
[340970570,1730183188860,539.78,0.00043892,30]
[340970571,1730183193904,167.62166879,0.00043892,30]
[340970572,1730183194497,243.020538,0.00043892,30]
[340970573,1730183198834,500.0,0.00043892,30]
[340970574,1730183201280,470.0,0.00043892,30]
[340970575,1730183202662,500.0,0.00043892,30]
[340970576,1730183215589,500.0,0.00043892,30]
[340970577,1730183217543,500.0,0.00043892,30]
[340970634,1730183282055,198.25512999,0.00015,2]
[340970635,1730183282075,800.0,0.00015,2]
[340970636,1730183282094,400.0,0.00015,2]
[340970637,1730183282119,1989035.70238342,0.00015,2]
[340970638,1730183283898,501.94601136,0.00043892,30]
[340970639,1730183289209,1840.17994629,0.00013,4]
[340970640,1730183291999,373.77544556,0.00043892,30]
[340970641,1730183294078,598.21449948,0.00043892,30]
[340970647,1730183311777,238.15689789,0.00043892,30]
[340970649,1730183319880,500.01685856,0.00043892,30]
[340970652,1730183341816,159.93675182,0.00043892,30]
[340970656,1730183376826,500.0,0.00043892,30]
[340970657,1730183379204,558.20151115,0.00043892,30]
[340970658,1730183381473,555.19459265,0.00043892,30]
[340970659,1730183384998,528.83313256,0.00043892,30]
[340970660,1730183393939,500.0,0.00043892,30]
[340970661,1730183394271,280.6019987,0.00043892,30]
[340970662,1730183406159,-157.68,0.00015342,2]
[340970663,1730183406182,-300.0,0.00015989,2]
[340970664,1730183406205,-39542.32,0.0001599,3]
[340970665,1730183413356,500.0,0.00043892,30]
[340970666,1730183424116,500.0,0.00043892,30]
[340970667,1730183430305,500.0,0.00043892,30]
[340970685,1730183431870,-334.79012144,0.0001589,2]
[340970686,1730183431951,-1080.52494165,0.0001589,2]
[340970687,1730183431961,-1064.64386732,0.0001599,3]
[340970692,1730183433475,500.0,0.00043892,30]
[340970693,1730183435866,500.0,0.00043892,30]
[340970700,1730183438015,-7408.82584896,0.0001589,2]
[340970719,1730183440043,-2128.21357975,0.0001589,2]
[340970720,1730183440054,-62601.19780468,0.0001599,3]
[340970721,1730183440069,-1800.76582973,0.0001599,3]
[340970722,1730183440079,-1310.60058904,0.00015999,2]
[340970723,1730183440088,-1310.60058904,0.00015999,2]
[340970724,1730183440098,-1310.60058904,0.00015999,2]
[340970725,1730183440109,-1310.60058904,0.00015999,2]
[340970726,1730183440121,-1310.60058904,0.00015999,2]
[340970727,1730183440131,-1310.60058904,0.00015999,2]
[340970728,1730183440142,-1310.60058904,0.00015999,2]
[340970729,1730183440152,-1310.60058904,0.00015999,2]
[340970730,1730183440163,-1310.60058904,0.00015999,2]
[340970731,1730183440172,-1310.60058904,0.00015999,2]
[340970732,1730183440182,-1310.60058904,0.00015999,2]
[340970733,1730183440192,-1310.60058904,0.00015999,2]
[340970734,1730183440202,-1310.60058904,0.00015999,2]
[340970735,1730183440211,-1310.60058904,0.00015999,2]
[340970736,1730183440221,-1310.60058904,0.00015999,2]
[340970737,1730183440230,-1310.60058904,0.00015999,2]
[340970738,1730183440240,-1310.60058904,0.00015999,2]
[340970739,1730183440249,-1310.60058904,0.00015999,2]
[340970740,1730183440258,-1310.60058904,0.00015999,2]
[340970741,1730183440269,-1310.60058904,0.00015999,2]
[340970742,1730183440278,-1310.60058904,0.00015999,2]
[340970743,1730183440287,-1310.60058904,0.00015999,2]
[340970744,1730183440296,-1310.60058904,0.00015999,2]
[340970745,1730183440306,-1310.60058904,0.00015999,2]
[340970746,1730183440315,-1310.60058904,0.00015999,2]
[340970747,1730183440324,-1326.98309641,0.00015999,2]
[340970749,1730183440333,-1326.98309641,0.00015999,2]
[340970750,1730183440342,-1326.98309641,0.00015999,2]
[340970751,1730183440351,-1326.98309641,0.00015999,2]
[340970752,1730183440360,-1326.98309641,0.00015999,2]
[340970753,1730183440369,-1326.98309641,0.00015999,2]
[340970754,1730183440378,-1326.98309641,0.00015999,2]
[340970755,1730183440387,-1326.98309641,0.00015999,2]
[340970756,1730183440396,-17675.89792972,0.00016,2]
[340970757,1730183440408,-20737.57178106,0.00016,2]
[340970759,1730183440451,500.0,0.00043892,30]
[340970773,1730183443000,-573.633557,0.00016,2]
[340970774,1730183443131,-28493.2,0.00016,2]
[340970777,1730183443371,500.0,0.0004391,30]
[340970778,1730183445936,619.08,0.0004391,30]
[340970779,1730183446086,-4413.5692166,0.00016,2]
[340970780,1730183446098,-14233.0,0.00016,2]
[340970781,1730183446150,-8546.291408,0.00016,2]
[340970783,1730183460055,500.0,0.0004391,30]
[340970784,1730183465372,330.70433725,0.0004391,30]
[340970785,1730183474322,500.0,0.0004391,30]
[340970786,1730183488992,523.02188706,0.0004391,30]
[340970787,1730183490922,628.05,0.0004391,30]
[340970788,1730183513348,500.0,0.0004391,30]
[340970789,1730183513647,796.53,0.0004391,30]
[340970790,1730183513940,796.53,0.0004391,30]
[340970791,1730183514232,796.53,0.0004391,30]
[340970792,1730183514591,796.53,0.0004391,30]
[340970793,1730183514817,796.53,0.0004391,30]
[340970794,1730183515091,796.53,0.0004391,30]
[340970795,1730183515397,796.53,0.0004391,30]
[340970796,1730183516034,796.53,0.0004391,30]
[340970797,1730183516331,796.53,0.0004391,30]
[340970798,1730183516636,796.53,0.0004391,30]
[340970799,1730183516934,796.53,0.0004391,30]
[340970800,1730183517205,796.53,0.0004391,30]
[340970801,1730183517655,796.53,0.0004391,30]
[340970802,1730183518142,796.53,0.0004391,30]
[340970803,1730183518418,796.53,0.0004391,30]
[340970804,1730183518727,796.53,0.0004391,30]
[340970805,1730183519005,796.53,0.0004391,30]
[340970806,1730183519278,796.53,0.0004391,30]
[340970807,1730183519598,796.53,0.0004391,30]
[340970808,1730183519864,796.53,0.0004391,30]
[340970809,1730183520136,796.53,0.0004391,30]
[340970810,1730183520410,796.53,0.0004391,30]
[340970811,1730183520675,796.53,0.0004391,30]
[340970812,1730183520952,796.69634675,0.0004391,30]
[340970817,1730183573855,476.5592876,0.0004391,30]
[340970818,1730183678065,500.0,0.00043884,30]
[340970819,1730183678272,500.0,0.00043884,30]
[340970820,1730183678571,500.0,0.00043884,30]
[340970821,1730183678870,500.0,0.00043884,30]
[340970822,1730183679139,500.0,0.00043884,30]
[340970823,1730183679506,576.62732275,0.00043884,30]
[340970824,1730183749933,-334.790122,0.00015124,2]
[340970825,1730183749959,-164.17133252,0.000152,2]
[340970826,1730183749983,-165.34639647,0.000153,2]
[340970827,1730183750010,-3438.58467691,0.000153,2]
[340970828,1730183750034,-1300.0,0.000154,5]
[340970829,1730183750060,-150.0,0.00015412,2]
[340970830,1730183750085,-2700.0,0.000155,5]
[340970831,1730183750110,-4000.0,0.000156,5]
[340970832,1730183750134,-5400.0,0.000157,5]
[340970833,1730183750160,-6800.0,0.000158,5]
[340970834,1730183750185,-1348.0,0.0001584,2]
[340970835,1730183750210,-1300.0,0.000159,5]
[340970836,1730183750233,-500.0,0.00015973,2]
[340970837,1730183750260,-7899.1074721,0.0001599,3]
[340970838,1730184131654,500.0,0.00043891,30]
[340970839,1730184131935,500.0,0.00043891,30]
[340970840,1730184132210,500.0,0.00043891,30]
[340970841,1730184132494,500.0,0.00043891,30]
[340970842,1730184132769,500.0,0.00043891,30]
[340970843,1730184133040,500.0,0.00043891,30]
[340970844,1730184133314,500.0,0.00043891,30]
[340970845,1730184133595,500.0,0.00043891,30]
[340970846,1730184134239,638.05751744,0.00043891,30]
[340970854,1730184384798,-173.74,0.00024877,30]
[340970855,1730184384824,-174.48,0.00026742,120]
[340970856,1730184384848,-1461.46,0.00027397,60]
[340970857,1730184384871,-34476.33753751,0.000314,30]
[340970858,1730184384894,-417484.00388634,0.000315,30]
[340970859,1730184384917,-168.62,0.00035616,120]
[340970860,1730184384941,-306.631,0.00035985,43]
[340970861,1730184384965,-6275.19,0.0004,120]
[340970862,1730184384988,-5092.19,0.0004,120]
[340970863,1730184385011,-424.9,0.0004,120]
[340970864,1730184385034,-185.04,0.0004,30]
[340970865,1730184385056,-1984.91,0.0004,120]
[340970866,1730184385080,-5816.6,0.00040821,120]
[340970867,1730184385104,-5000.0,0.00041095,120]
[340970868,1730184385128,-173.74,0.00041242,120]
[340970869,1730184385152,-5816.6,0.00041917,120]
[340970870,1730184385174,-185.15138301,0.00042,30]
[340970871,1730184385198,-156.231867,0.00042723,30]
[340970872,1730184385220,-152.467185,0.00042723,30]
[340970873,1730184385243,-154809.0,0.00043,30]
[340970874,1730184385267,-5816.6,0.00043013,120]
[340970875,1730184385298,-500.0,0.000437,42]
[340970876,1730184385322,-1048.99,0.000438,30]
[340970877,1730184385344,-11369.24337951,0.000438,30]
[340970878,1730184385367,-2000.0,0.000438,56]
[340970879,1730184385391,-2000.0,0.000438,56]
[340970880,1730184385414,-2231.002729,0.0004381,56]
[340970881,1730184385438,-2029.798232,0.0004381,56]
[340970882,1730184385462,-197.677,0.00043816,120]
[340970883,1730184385485,-197.678,0.00043816,120]
[340970884,1730184385508,-197.678,0.00043816,120]
[340970885,1730184385533,-197.678,0.00043816,120]
[340970886,1730184385558,-197.678,0.00043816,120]
[340970887,1730184385581,-500.0,0.00043835,30]
[340970888,1730184385604,-500.0,0.00043835,30]
[340970889,1730184385627,-500.0,0.00043835,30]
[340970890,1730184385649,-427.41422238,0.00043835,30]
[340970891,1730184385671,-500.0,0.00043835,30]
[340970892,1730184385695,-500.0,0.00043835,30]
[340970893,1730184385718,-500.0,0.00043835,30]
[340970894,1730184385743,-500.0,0.00043835,30]
[340970895,1730184385767,-500.0,0.00043835,30]
[340970896,1730184385789,-500.0,0.00043835,30]
[340970897,1730184385811,-500.0,0.00043835,30]
[340970898,1730184385834,-500.0,0.00043835,30]
[340970899,1730184385860,-500.0,0.00043835,30]
[340970900,1730184385882,-500.0,0.00043835,30]
[340970901,1730184385904,-500.0,0.00043835,30]
[340970902,1730184385926,-500.0,0.00043835,30]
[340970903,1730184385948,-531.03518658,0.00043835,30]
[340970904,1730184385971,-500.0,0.00043835,30]
[340970905,1730184385993,-500.0,0.00043835,30]
[340970906,1730184386016,-500.0,0.00043835,30]
[340970907,1730184386038,-500.0,0.00043835,30]
[340970908,1730184386061,-434.88209294,0.00043835,30]
[340970909,1730184386083,-500.0,0.00043835,30]
[340970910,1730184386105,-500.0,0.00043835,30]
[340970911,1730184386130,-500.0,0.00043835,30]
[340970912,1730184386153,-500.0,0.00043835,30]
[340970913,1730184386177,-500.0,0.00043835,30]
[340970914,1730184386200,-500.0,0.00043835,30]
[340970915,1730184386222,-500.0,0.00043835,30]
[340970916,1730184386252,-500.0,0.00043835,30]
[340970917,1730184386276,-500.0,0.00043835,30]
[340970918,1730184386298,-500.0,0.00043835,30]
[340970919,1730184386320,-500.0,0.00043835,30]
[340970920,1730184386342,-500.0,0.00043835,30]
[340970921,1730184386364,-500.0,0.00043835,30]
[340970922,1730184386386,-500.0,0.00043835,30]
[340970923,1730184386408,-500.0,0.00043835,30]
[340970924,1730184386430,-500.0,0.00043835,30]
[340970925,1730184386452,-500.0,0.00043835,30]
[340970926,1730184386477,-500.0,0.00043835,30]
[340970927,1730184386503,-500.0,0.00043835,30]
[340970928,1730184386528,-500.0,0.00043835,30]
[340970929,1730184386553,-394.89700339,0.00043835,30]
[340970930,1730184386579,-2010.0,0.00043836,30]
[340970931,1730184386602,-474.0,0.00043836,30]
[340970932,1730184386625,-474.0,0.00043836,30]
[340970933,1730184386755,-474.0,0.00043836,30]
[340970934,1730184386778,-474.0,0.00043836,30]
[340970935,1730184386802,-474.0,0.00043836,30]
[340970936,1730184386827,-474.0,0.00043836,30]
[340970937,1730184386851,-474.0,0.00043836,30]
[340970938,1730184386874,-474.0,0.00043836,30]
[340970939,1730184386898,-474.0,0.00043836,30]
[340970940,1730184386921,-474.0,0.00043836,30]
[340970941,1730184386944,-474.0,0.00043836,30]
[340970942,1730184386968,-474.0,0.00043836,30]
[340970943,1730184386992,-474.0,0.00043836,30]
[340970944,1730184387014,-474.0,0.00043836,30]
[340970945,1730184387038,-474.0,0.00043836,30]
[340970946,1730184387061,-474.0,0.00043836,30]
[340970947,1730184387084,-474.0,0.00043836,30]
[340970948,1730184387109,-474.0,0.00043836,30]
[340970949,1730184387134,-474.0,0.00043836,30]
[340970950,1730184387157,-474.0,0.00043836,30]
[340970951,1730184387181,-474.0,0.00043836,30]
[340970952,1730184387204,-474.0,0.00043836,30]
[340970953,1730184387228,-474.0,0.00043836,30]
[340970954,1730184387253,-477.31998916,0.00043836,30]
[340970955,1730184387277,-200.57758009,0.00043836,120]
[340970956,1730184387300,-485.0,0.00043836,30]
[340970957,1730184387325,-485.0,0.00043836,30]
[340970958,1730184387348,-485.0,0.00043836,30]
[340970959,1730184387371,-485.0,0.00043836,30]
[340970960,1730184387395,-485.0,0.00043836,30]
[340970961,1730184387418,-485.0,0.00043836,30]
[340970962,1730184387441,-485.0,0.00043836,30]
[340970963,1730184387463,-485.0,0.00043836,30]
[340970964,1730184387488,-485.0,0.00043836,30]
[340970965,1730184387513,-485.0,0.00043836,30]
[340970966,1730184387536,-485.0,0.00043836,30]
[340970967,1730184387560,-485.0,0.00043836,30]
[340970968,1730184387585,-485.0,0.00043836,30]
[340970969,1730184387609,-485.0,0.00043836,30]
[340970970,1730184387633,-485.0,0.00043836,30]
[340970971,1730184387656,-485.0,0.00043836,30]
[340970972,1730184387680,-485.0,0.00043836,30]
[340970973,1730184387704,-485.0,0.00043836,30]
[340970974,1730184387728,-485.0,0.00043836,30]
[340970975,1730184387751,-485.0,0.00043836,30]
[340970976,1730184387775,-485.0,0.00043836,30]
[340970977,1730184387799,-485.0,0.00043836,30]
[340970978,1730184387822,-485.0,0.00043836,30]
[340970979,1730184387846,-508.11689033,0.00043836,30]
[340970980,1730184387870,-160.0,0.00043836,30]
[340970981,1730184387893,-160.0,0.00043836,30]
[340970982,1730184387916,-160.0,0.00043836,30]
[340970983,1730184387938,-160.0,0.00043836,30]
[340970984,1730184387961,-160.0,0.00043836,30]
[340970985,1730184387984,-310.14330242,0.00043836,30]
[340970986,1730184388008,-152.0580412,0.0004384,120]
[340970987,1730184388031,-152.0580412,0.0004384,120]
[340970988,1730184388055,-152.0580412,0.0004384,120]
[340970989,1730184388080,-152.0580412,0.0004384,120]
[340970990,1730184388104,-152.0580412,0.0004384,120]
[340970991,1730184388131,-152.0580412,0.0004384,120]
[340970992,1730184388155,-152.0580412,0.0004384,120]
[340970993,1730184388180,-152.0580412,0.0004384,120]
[340970994,1730184388204,-152.0580412,0.0004384,120]
[340970995,1730184388230,-152.0580412,0.0004384,120]
[340970996,1730184388254,-152.0580412,0.0004384,120]
[340970997,1730184388277,-152.0580412,0.0004384,120]
[340970998,1730184388301,-152.0580412,0.0004384,120]
[340970999,1730184388324,-152.05,0.0004384,120]
[340971000,1730184388348,-159.66094326,0.0004384,120]
[340971001,1730184388371,-159.66094326,0.0004384,120]
[340971002,1730184388396,-159.66094326,0.0004384,120]
[340971003,1730184388420,-159.66094326,0.0004384,120]
[340971004,1730184388444,-159.66094326,0.0004384,120]
[340971005,1730184388467,-159.66094326,0.0004384,120]
[340971006,1730184388495,-159.66094326,0.0004384,120]
[340971007,1730184388518,-159.66094326,0.0004384,120]
[340971008,1730184388542,-159.66094326,0.0004384,120]
[340971009,1730184388567,-159.66094326,0.0004384,120]
[340971010,1730184388590,-159.66094326,0.0004384,120]
[340971011,1730184388612,-159.66094326,0.0004384,120]
[340971012,1730184388635,-159.66094326,0.0004384,120]
[340971013,1730184388659,-159.66094326,0.0004384,120]
[340971014,1730184388682,-159.66094326,0.0004384,120]
[340971015,1730184388704,-159.66094326,0.0004384,120]
[340971016,1730184388726,-159.66094326,0.0004384,120]
[340971017,1730184388748,-159.66094326,0.0004384,120]
[340971018,1730184388770,-159.66094326,0.0004384,120]
[340971019,1730184388793,-159.66,0.0004384,120]
[340971020,1730184388815,-310.64948209,0.0004384,120]
[340971021,1730184388838,-310.64948209,0.0004384,120]
[340971022,1730184388861,-310.64948209,0.0004384,120]
[340971023,1730184388884,-310.64948209,0.0004384,120]
[340971024,1730184388908,-310.64948209,0.0004384,120]
[340971025,1730184388930,-310.64948209,0.0004384,120]
[340971026,1730184388954,-310.64948209,0.0004384,120]
[340971027,1730184388977,-310.64948209,0.0004384,120]
[340971028,1730184389001,-310.64948209,0.0004384,120]
[340971029,1730184389024,-310.64948209,0.0004384,120]
[340971030,1730184389047,-310.64948209,0.0004384,120]
[340971031,1730184389070,-310.64948209,0.0004384,120]
[340971032,1730184389093,-310.64948209,0.0004384,120]
[340971033,1730184389116,-310.64948209,0.0004384,120]
[340971034,1730184389139,-310.64948209,0.0004384,120]
[340971035,1730184389162,-310.64948209,0.0004384,120]
[340971036,1730184389291,-310.64948209,0.0004384,120]
[340971037,1730184389316,-310.64948209,0.0004384,120]
[340971038,1730184389340,-310.64948209,0.0004384,120]
[340971039,1730184389365,-310.64,0.0004384,120]
[340971040,1730184389388,-465.97422314,0.0004384,120]
[340971041,1730184389411,-465.97422314,0.0004384,120]
[340971042,1730184389434,-465.97422314,0.0004384,120]
[340971043,1730184389457,-465.97422314,0.0004384,120]
[340971044,1730184389481,-465.97422314,0.0004384,120]
[340971045,1730184389504,-465.97422314,0.0004384,120]
[340971046,1730184389528,-465.97422314,0.0004384,120]